fUSD/lending_fUSD_20260401
["ID","MTS","AMOUNT","RATE_DAILY","PERIOD"]
[419201812,1775017870939,-151.0,0.000249,2]
[419201813,1775017870950,-273.873245,0.000249,2]
[419201814,1775017870961,-1002.143556,0.000249,2]
[419201815,1775017870972,-892.253268,0.000249,2]
[419201816,1775017870983,-151.0,0.000249,2]
[419201817,1775017870994,-273.873245,0.000249,2]
[419201818,1775017871005,-839.001389,0.000249,2]
[419201819,1775017871016,-151.0,0.000249,2]
[419201820,1775017871027,-1002.143556,0.000249,2]
[419201821,1775017871038,-151.0,0.000249,2]
[419201822,1775017871049,-151.0,0.000249,2]
[419201823,1775017871060,-610.708078,0.000249,2]
[419201824,1775017871071,-892.253268,0.000249,2]
[419201825,1775017871083,-151.0,0.000249,2]
[419201826,1775017871095,-2959.597666,0.000249,2]
[419201827,1775017871106,-839.001389,0.000249,2]
[419201828,1775017871118,-273.873245,0.000249,2]
[419201829,1775017871129,-1002.143556,0.000249,2]
[419201830,1775017871142,-175.599481,0.000249,2]
[419201831,1775017871154,-892.253268,0.000249,2]
[419201832,1775017871166,-610.708078,0.000249,2]
[419201833,1775017871178,-2959.597666,0.000249,2]
[419201834,1775017871190,-839.001389,0.000249,2]
[419201835,1775017871201,-166.099322,0.000249,2]
[419201836,1775017871212,-1002.143556,0.000249,2]
[419201837,1775017871223,-273.873245,0.000249,2]
[419201838,1775017871234,-196.147739,0.000249,2]
[419201839,1775017871245,-175.599481,0.000249,2]
[419201840,1775017871256,-892.253268,0.000249,2]
[419201841,1775017871268,-610.708078,0.000249,2]
[419201842,1775017871279,-2959.597666,0.000249,2]
[419201843,1775017871290,-839.001389,0.000249,2]
[419201844,1775017872250,-166.099322,0.000249,2]
[419201845,1775017872277,-196.147739,0.000249,2]
[419201846,1775017872287,-175.599481,0.000249,2]
[419201847,1775017872297,-4126.945995,0.000249,2]
[419201848,1775017872307,-610.708078,0.000249,2]
[419201849,1775017872316,-2959.597666,0.000249,2]
[419201850,1775017872327,-166.099322,0.000249,2]
[419201851,1775017872336,-1163.182786,0.000249,2]
[419201852,1775017872347,-2296.649879,0.000249,2]
[419201853,1775017872357,-196.147739,0.000249,2]
[419201854,1775017872366,-175.599481,0.000249,2]
[419201855,1775017872376,-151.0,0.000249,2]
[419201856,1775017872386,-4126.945995,0.000249,2]
[419201857,1775017872397,-170.636045,0.000249,2]
[419201858,1775017872407,-166.099322,0.000249,2]
[419201859,1775017872416,-1163.182786,0.000249,2]
[419201860,1775017872426,-4126.945995,0.000249,2]
[419201861,1775017872437,-2296.649879,0.000249,2]
[419201862,1775017872447,-151.0,0.000249,2]
[419201863,1775017872457,-196.147739,0.000249,2]
[419201864,1775017872467,-170.636045,0.000249,2]
[419201865,1775017872477,-1163.182786,0.000249,2]
[419201866,1775017872488,-2296.649879,0.000249,2]
[419201867,1775017872497,-4126.945995,0.000249,2]
[419201868,1775017872507,-170.636045,0.000249,2]
[419201869,1775017872517,-1163.182786,0.000249,2]
[419201870,1775017872526,-2296.649879,0.000249,2]
[419201871,1775017872536,-170.636045,0.000249,2]
[419201872,1775017872545,-175.691598,0.000249,2]
[419201873,1775017872555,-151.0,0.000249,2]
[419201874,1775017872565,-175.691598,0.000249,2]
[419201875,1775017872574,-560.669219,0.000249,2]
[419201876,1775017872584,-206.472759,0.000249,2]
[419201877,1775017872594,-175.691598,0.000249,2]
[419201878,1775017872603,-560.669219,0.000249,2]
[419201879,1775017872613,-557.258778,0.000249,2]
[419201880,1775017872624,-353.860164,0.000249,2]
[419201881,1775017872634,-206.472759,0.000249,2]
[419201882,1775017872644,-175.691598,0.000249,2]
[419201883,1775017872655,-560.669219,0.000249,2]
[419201884,1775017872664,-178.645392,0.000249,2]
[419201885,1775017872674,-557.258778,0.000249,2]
[419201886,1775017872685,-353.860164,0.000249,2]
[419201887,1775017872696,-151.0,0.000249,2]
[419201888,1775017872706,-206.472759,0.000249,2]
[419201889,1775017872716,-560.669219,0.000249,2]
[419201890,1775017872726,-178.645392,0.000249,2]
[419201891,1775017872736,-353.860164,0.000249,2]
[419201892,1775017872746,-557.258778,0.000249,2]
[419201893,1775017872756,-206.472759,0.000249,2]
[419201894,1775017872766,-178.645392,0.000249,2]
[419201895,1775017872775,-353.860164,0.000249,2]
[419201896,1775017872785,-557.258778,0.000249,2]
[419201897,1775017872795,-178.645392,0.000249,2]
[419201898,1775017872804,-151.0,0.000249,2]
[419201899,1775017872814,-151.0,0.000249,2]
[419201900,1775017872824,-151.0,0.000249,2]
[419201901,1775017872834,-272.369738,0.000249,2]
[419201902,1775017872844,-2349.593397,0.000249,2]
[419201903,1775017872855,-272.369738,0.000249,2]
[419201904,1775017872866,-151.0,0.000249,2]
[419201905,1775017872877,-2349.593397,0.000249,2]
[419201906,1775017872886,-402.472625,0.000249,2]
[419201907,1775017872896,-272.369738,0.000249,2]
[419201908,1775017872906,-151.0,0.000249,2]
[419201909,1775017872916,-2349.593397,0.000249,2]
[419201910,1775017872926,-402.472625,0.000249,2]
[419201911,1775017872936,-272.369738,0.000249,2]
[419201912,1775017872947,-2349.593397,0.000249,2]
[419201913,1775017872957,-402.472625,0.000249,2]
[419201914,1775017872967,-402.472625,0.000249,2]
[419201915,1775017872977,-776.330977,0.000249,2]
[419201916,1775017872987,-1030.82704,0.000249,2]
[419201917,1775017872997,-776.330977,0.000249,2]
[419201918,1775017873008,-268.345093,0.000249,2]
[419201919,1775017873018,-1030.82704,0.000249,2]
[419201920,1775017873029,-1471.650873,0.000249,2]
[419201921,1775017873039,-268.345093,0.000249,2]
[419201922,1775017873050,-776.330977,0.000249,2]
[419201923,1775017873061,-2803.308424,0.000249,2]
[419201924,1775017873072,-1030.82704,0.000249,2]
[419201925,1775017873083,-454.900784,0.000249,2]
[419201926,1775017873094,-1471.650873,0.000249,2]
[419201927,1775017873104,-268.345093,0.000249,2]
[419201928,1775017873115,-776.330977,0.000249,2]
[419201929,1775017873125,-2803.308424,0.000249,2]
[419201930,1775017873137,-151.0,0.000249,2]
[419201931,1775017873147,-1030.82704,0.000249,2]
[419201932,1775017873158,-454.900784,0.000249,2]
[419201933,1775017873169,-1471.650873,0.000249,2]
[419201934,1775017873181,-268.345093,0.000249,2]
[419201935,1775017873192,-2803.308424,0.000249,2]
[419201936,1775017873202,-454.900784,0.000249,2]
[419201937,1775017873212,-1471.650873,0.000249,2]
[419201938,1775017873223,-2803.308424,0.000249,2]
[419201939,1775017873233,-454.900784,0.000249,2]
[419201940,1775017873245,-243.309366,0.000249,2]
[419201941,1775017873256,-243.309366,0.000249,2]
[419201942,1775017873266,-243.309366,0.000249,2]
[419201943,1775017873276,-243.309366,0.000249,2]
[419201944,1775017873286,-151.0,0.000249,2]
[419201945,1775017873295,-151.0,0.000249,2]
[419201946,1775017873305,-151.0,0.000249,2]
[419201947,1775017873314,-1115.0,0.0002496,2]
[419201948,1775017873325,-1076.0,0.00025,2]
[419201949,1775017873336,-1049.0,0.00025,2]
[419201950,1775017873347,-5062.0,0.00025,2]
[419201951,1775017873357,-550.0,0.00025,2]
[419201952,1775017873368,-1219.0,0.00025,2]
[419201953,1775017873378,-571.0,0.00025,2]
[419201954,1775017873389,-6886.34399958,0.00025152,2]
[419201955,1775017873399,-154.11,0.000252,7]
[419201956,1775017873410,-217.27,0.000252,7]
[419201957,1775017873422,-150.0,0.000252,7]
[419201958,1775017873432,-197.93,0.000252,7]
[419201959,1775017873443,-202.02,0.000252,7]
[419201960,1775017873454,-1097.26,0.00025307,2]
[419201961,1775017873465,-217.27,0.00025397,10]
[419201962,1775017873475,-504.0,0.00025498,12]
[419201963,1775017873485,-2383.1557,0.000255,57]
[419201964,1775017873495,-153.94,0.00025768,7]
[419201965,1775017873507,-197.89,0.00025768,7]
[419201966,1775017873518,-200.0,0.00025865,2]
[419201967,1775017873528,-174.61919141,0.00025865,2]
[419201968,1775017873538,-500.0,0.00025865,2]
[419201969,1775017873548,-578.20924308,0.00025865,2]
[419201970,1775017873559,-7965.41053268,0.00025865,2]
[419201971,1775017873569,-1191.11104075,0.00025865,2]
[419201972,1775017873579,-500.0,0.00025865,2]
[419201973,1775017873590,-500.0,0.00025865,2]
[419201974,1775017873600,-500.0,0.00025865,2]
[419201975,1775017873611,-500.0,0.00025865,2]
[419201976,1775017873621,-500.0,0.00025865,2]
[419201977,1775017873631,-155.87532976,0.00025865,2]
[419201978,1775017873642,-151.0,0.00025865,2]
[419201979,1775017873652,-500.0,0.00025865,2]
[419201980,1775017873662,-151.0,0.00025865,2]
[419201981,1775017873671,-500.0,0.00025865,2]
[419201982,1775017873681,-151.0,0.00025865,2]
[419201983,1775017873691,-500.0,0.00025865,2]
[419201984,1775017873701,-151.0,0.00025865,2]
[419201985,1775017873711,-500.0,0.00025865,2]
[419201986,1775017873721,-151.0,0.00025865,2]
[419201987,1775017873732,-500.0,0.00025865,2]
[419201988,1775017873742,-295.29184605,0.00025865,2]
[419201989,1775017873752,-500.0,0.00025865,2]
[419201990,1775017873762,-500.0,0.00025865,2]
[419201991,1775017873773,-500.0,0.00025865,2]
[419201992,1775017873785,-617.58749353,0.00025865,2]
[419201993,1775017873794,-500.0,0.00025865,2]
[419201994,1775017873804,-500.0,0.00025865,2]
[419201995,1775017873815,-500.0,0.00025865,2]
[419201996,1775017873826,-500.0,0.00025865,2]
[419201997,1775017873836,-500.0,0.00025865,2]
[419201998,1775017873847,-500.0,0.00025865,2]
[419201999,1775017873857,-500.0,0.00025865,2]
[419202000,1775017873867,-500.0,0.00025865,2]
[419202001,1775017873877,-500.0,0.00025865,2]
[419202002,1775017873887,-500.0,0.00025865,2]
[419202003,1775017873897,-500.0,0.00025865,2]
[419202004,1775017873907,-500.0,0.00025865,2]
[419202005,1775017873918,-500.0,0.00025865,2]
[419202006,1775017873929,-500.0,0.00025865,2]
[419202007,1775017873939,-500.0,0.00025865,2]
[419202008,1775017873950,-500.0,0.00025865,2]
[419202009,1775017873960,-500.0,0.00025865,2]
[419202010,1775017873970,-174.61919141,0.00025865,2]
[419202011,1775017873981,-500.0,0.00025865,2]
[419202012,1775017873991,-500.0,0.00025865,2]
[419202013,1775017874002,-500.0,0.00025865,2]
[419202014,1775017874012,-500.0,0.00025865,2]
[419202015,1775017874022,-500.0,0.00025865,2]
[419202016,1775017874033,-500.0,0.00025865,2]
[419202017,1775017874044,-500.0,0.00025865,2]
[419202018,1775017874054,-160.65067359,0.00025865,2]
[419202019,1775017874065,-500.0,0.00025865,2]
[419202020,1775017874075,-500.0,0.00025865,2]
[419202021,1775017874085,-500.0,0.00025865,2]
[419202022,1775017874096,-500.0,0.00025865,2]
[419202023,1775017874107,-500.0,0.00025865,2]
[419202024,1775017874118,-200.0,0.00025865,2]
[419202025,1775017874128,-500.0,0.00025865,2]
[419202026,1775017874139,-510.80849174,0.00025865,2]
[419202027,1775017874151,-174.61919141,0.00025865,2]
[419202028,1775017874162,-578.20924308,0.00025865,2]
[419202029,1775017874172,-151.0,0.00025865,2]
[419202030,1775017874183,-250.0,0.00025865,2]
[419202031,1775017874193,-250.0,0.00025865,2]
[419202032,1775017874203,-250.0,0.00025865,2]
[419202033,1775017874213,-250.0,0.00025865,2]
[419202034,1775017874223,-174.61919141,0.00025865,2]
[419202035,1775017874234,-250.0,0.00025865,2]
[419202036,1775017874245,-250.0,0.00025865,2]
[419202037,1775017874256,-250.0,0.00025865,2]
[419202038,1775017874266,-250.0,0.00025865,2]
[419202039,1775017874276,-250.0,0.00025865,2]
[419202040,1775017874286,-250.0,0.00025865,2]
[419202041,1775017874295,-250.0,0.00025865,2]
[419202042,1775017874305,-279.9045709,0.00025865,2]
[419202043,1775017874315,-250.0,0.00025865,2]
[419202044,1775017874324,-250.0,0.00025865,2]
[419202045,1775017874334,-250.0,0.00025865,2]
[419202046,1775017874343,-250.0,0.00025865,2]
[419202047,1775017874353,-250.0,0.00025865,2]
[419202048,1775017874364,-151.0,0.00025865,2]
[419202049,1775017874374,-194.71896081,0.00025865,2]
[419202050,1775017874385,-743.50770149,0.00025865,2]
[419202051,1775017874395,-262.90206542,0.00025865,2]
[419202052,1775017874405,-500.0,0.00025865,2]
[419202053,1775017874415,-500.0,0.00025865,2]
[419202054,1775017874424,-500.0,0.00025865,2]
[419202055,1775017874434,-500.0,0.00025865,2]
[419202056,1775017874444,-500.0,0.00025865,2]
[419202057,1775017874454,-150.0,0.0002589,2]
[419202058,1775017874464,-8260.13072239,0.0002592,2]
[419202059,1775017874473,-500.0,0.0002592,2]
[419202060,1775017874483,-151.0,0.0002592,2]
[419202061,1775017874493,-272.62944185,0.0002592,2]
[419202062,1775017874503,-8565.75555911,0.00025975,2]
[419202063,1775017874514,-500.0,0.00025975,2]
[419202064,1775017874523,-151.0,0.00025975,2]
[419202065,1775017874534,-282.71673119,0.00025975,2]
[419202066,1775017874544,-1076.0,0.00026,2]
[419202067,1775017874553,-1049.0,0.00026,2]
[419202068,1775017874563,-5062.0,0.00026,2]
[419202069,1775017874573,-1219.0,0.00026,2]
[419202070,1775017874582,-571.0,0.00026,2]
[419202071,1775017874592,-492.031885,0.00026,2]
[419202072,1775017874601,-492.031885,0.00026,2]
[419202073,1775017874611,-151.0,0.00026,2]
[419202074,1775017874621,-483.27777,0.00026,2]
[419202075,1775017874631,-492.031885,0.00026,2]
[419202076,1775017874640,-483.27777,0.00026,2]
[419202077,1775017874649,-492.031885,0.00026,2]
[419202078,1775017874659,-373.639694,0.00026,2]
[419202079,1775017874668,-483.27777,0.00026,2]
[419202080,1775017874767,-151.0,0.00026,2]
[419202081,1775017874776,-151.0,0.00026,2]
[419202082,1775017874785,-373.639694,0.00026,2]
[419202083,1775017874795,-483.27777,0.00026,2]
[419202084,1775017874804,-374.687718,0.00026,2]
[419202085,1775017874813,-151.0,0.00026,2]
[419202086,1775017874822,-151.0,0.00026,2]
[419202087,1775017874832,-373.639694,0.00026,2]
[419202088,1775017874842,-374.687718,0.00026,2]
[419202089,1775017874851,-3433.898481,0.00026,2]
[419202090,1775017874861,-373.639694,0.00026,2]
[419202091,1775017874870,-374.687718,0.00026,2]
[419202092,1775017874879,-3433.898481,0.00026,2]
[419202093,1775017874888,-374.687718,0.00026,2]
[419202094,1775017874898,-3433.898481,0.00026,2]
[419202095,1775017874908,-1777.572748,0.00026,2]
[419202096,1775017874918,-3433.898481,0.00026,2]
[419202097,1775017874927,-1777.572748,0.00026,2]
[419202098,1775017874936,-810.172394,0.00026,2]
[419202099,1775017874946,-151.0,0.00026,2]
[419202100,1775017874956,-151.0,0.00026,2]
[419202101,1775017874966,-1777.572748,0.00026,2]
[419202102,1775017874975,-810.172394,0.00026,2]
[419202103,1775017874984,-1777.572748,0.00026,2]
[419202104,1775017874994,-151.0,0.00026,2]
[419202105,1775017875003,-810.172394,0.00026,2]
[419202106,1775017875013,-151.0,0.00026,2]
[419202107,1775017875022,-151.0,0.00026,2]
[419202108,1775017875031,-810.172394,0.00026,2]
[419202109,1775017875041,-151.0,0.00026,2]
[419202110,1775017875050,-231.496443,0.00026,2]
[419202111,1775017875059,-404.966357,0.00026,2]
[419202112,1775017875068,-404.966357,0.00026,2]
[419202113,1775017875077,-404.966357,0.00026,2]
[419202114,1775017875087,-404.966357,0.00026,2]
[419202115,1775017875097,-698.819389,0.00026,2]
[419202116,1775017875106,-698.819389,0.00026,2]
[419202117,1775017875116,-151.0,0.00026,2]
[419202118,1775017875124,-698.819389,0.00026,2]
[419202119,1775017875134,-151.0,0.00026,2]
[419202120,1775017875143,-698.819389,0.00026,2]
[419202121,1775017875154,-151.0,0.00026,2]
[419202122,1775017875164,-188.8771,0.00026,2]
[419202123,1775017875174,-649.377886,0.00026,2]
[419202124,1775017875183,-563.06762,0.00026,2]
[419202125,1775017875193,-649.377886,0.00026,2]
[419202126,1775017875202,-188.8771,0.00026,2]
[419202127,1775017875211,-81954.65979121,0.00026,2]
[419202128,1775017875221,-563.06762,0.00026,2]
[419202129,1775017875232,-188.8771,0.00026,2]
[419202130,1775017875241,-563.06762,0.00026,2]
[419202131,1775017875250,-188.8771,0.00026,2]
[419202132,1775017875260,-563.06762,0.00026,2]
[419202133,1775017875270,-649.377886,0.00026,2]
[419202134,1775017875279,-649.377886,0.00026,2]
[419202135,1775017875288,-984.6392,0.00026,2]
[419202136,1775017875298,-984.6392,0.00026,2]
[419202137,1775017875307,-984.6392,0.00026,2]
[419202138,1775017875316,-1032.993865,0.00026,2]
[419202139,1775017875326,-984.6392,0.00026,2]
[419202140,1775017875335,-1032.993865,0.00026,2]
[419202141,1775017875344,-1032.993865,0.00026,2]
[419202142,1775017875354,-420.0,0.00026,2]
[419202143,1775017875363,-1032.993865,0.00026,2]
[419202144,1775017875372,-420.0,0.00026,2]
[419202145,1775017875381,-420.0,0.00026,2]
[419202146,1775017875391,-151.0,0.00026,2]
[419202147,1775017875400,-420.0,0.00026,2]
[419202148,1775017875409,-158.773849,0.00026,2]
[419202149,1775017875418,-151.0,0.00026,2]
[419202150,1775017875427,-151.0,0.00026,2]
[419202151,1775017875436,-151.0,0.00026,2]
[419202152,1775017875445,-398.289537,0.00026,2]
[419202153,1775017875454,-151.0,0.00026,2]
[419202154,1775017875464,-422.676841,0.00026,2]
[419202155,1775017875473,-398.289537,0.00026,2]
[419202156,1775017875482,-973.11877,0.00026,2]
[419202157,1775017875492,-151.0,0.00026,2]
[419202158,1775017875501,-422.676841,0.00026,2]
[419202159,1775017875511,-9593.265937,0.00026,2]
[419202160,1775017875520,-398.289537,0.00026,2]
[419202161,1775017875529,-973.11877,0.00026,2]
[419202162,1775017875538,-422.676841,0.00026,2]
[419202163,1775017875548,-360.289137,0.00026,2]
[419202164,1775017875557,-9593.265937,0.00026,2]
[419202165,1775017875567,-2603.079491,0.00026,2]
[419202166,1775017875576,-1331.064899,0.00026,2]
[419202167,1775017875585,-973.11877,0.00026,2]
[419202168,1775017875594,-398.289537,0.00026,2]
[419202169,1775017875603,-9593.265937,0.00026,2]
[419202170,1775017875613,-422.676841,0.00026,2]
[419202171,1775017875623,-360.289137,0.00026,2]
[419202172,1775017875634,-2603.079491,0.00026,2]
[419202173,1775017875644,-1331.064899,0.00026,2]
[419202174,1775017875655,-973.11877,0.00026,2]
[419202175,1775017875664,-9593.265937,0.00026,2]
[419202176,1775017875675,-360.289137,0.00026,2]
[419202177,1775017875686,-1331.064899,0.00026,2]
[419202178,1775017875696,-189.990753,0.00026,2]
[419202179,1775017875707,-2603.079491,0.00026,2]
[419202180,1775017875719,-151.0,0.00026,2]
[419202181,1775017875728,-173.137483,0.00026,2]
[419202182,1775017875738,-360.289137,0.00026,2]
[419202183,1775017875747,-1331.064899,0.00026,2]
[419202184,1775017875756,-2603.079491,0.00026,2]
[419202185,1775017875765,-189.990753,0.00026,2]
[419202186,1775017875775,-161.347649,0.00026,2]
[419202187,1775017875784,-151.0,0.00026,2]
[419202188,1775017875794,-151.0,0.00026,2]
[419202189,1775017875804,-173.137483,0.00026,2]
[419202190,1775017875813,-342.986034,0.00026,2]
[419202191,1775017875822,-189.990753,0.00026,2]
[419202192,1775017875832,-173.137483,0.00026,2]
[419202193,1775017875842,-342.986034,0.00026,2]
[419202194,1775017875851,-289.862398,0.00026,2]
[419202195,1775017875861,-189.990753,0.00026,2]
[419202196,1775017875871,-151.0,0.00026,2]
[419202197,1775017875880,-2425.250221,0.00026,2]
[419202198,1775017875890,-795.07293,0.00026,2]
[419202199,1775017875900,-173.137483,0.00026,2]
[419202200,1775017875910,-151.0,0.00026,2]
[419202201,1775017875919,-342.986034,0.00026,2]
[419202202,1775017875928,-2425.250221,0.00026,2]
[419202203,1775017875937,-289.862398,0.00026,2]
[419202204,1775017875948,-795.07293,0.00026,2]
[419202205,1775017875959,-342.986034,0.00026,2]
[419202206,1775017875968,-151.0,0.00026,2]
[419202207,1775017875978,-289.862398,0.00026,2]
[419202208,1775017875989,-2425.250221,0.00026,2]
[419202209,1775017876000,-795.07293,0.00026,2]
[419202210,1775017876010,-151.0,0.00026,2]
[419202211,1775017876021,-795.07293,0.00026,2]
[419202212,1775017876030,-289.862398,0.00026,2]
[419202213,1775017876040,-2425.250221,0.00026,2]
[419202214,1775017876050,-151.0,0.00026,2]
[419202215,1775017876060,-151.0,0.00026,2]
[419202216,1775017876069,-151.0,0.00026,2]
[419202217,1775017876079,-268.620778,0.00026,2]
[419202218,1775017876089,-151.0,0.00026,2]
[419202219,1775017876098,-593.888307,0.00026,2]
[419202220,1775017876107,-170.656032,0.00026,2]
[419202221,1775017876116,-160.106788,0.00026,2]
[419202222,1775017876126,-593.888307,0.00026,2]
[419202223,1775017876135,-170.656032,0.00026,2]
[419202224,1775017876144,-160.106788,0.00026,2]
[419202225,1775017876154,-593.888307,0.00026,2]
[419202226,1775017876163,-170.656032,0.00026,2]
[419202227,1775017876173,-160.106788,0.00026,2]
[419202228,1775017876183,-593.888307,0.00026,2]
[419202229,1775017876192,-470.643226,0.00026,2]
[419202230,1775017876202,-170.656032,0.00026,2]
[419202231,1775017876211,-151.0,0.00026,2]
[419202232,1775017876222,-160.106788,0.00026,2]
[419202233,1775017876232,-387.268935,0.00026,2]
[419202234,1775017876242,-470.643226,0.00026,2]
[419202235,1775017876252,-151.0,0.00026,2]
[419202236,1775017876262,-207.081744,0.00026,2]
[419202237,1775017876271,-253.217047,0.00026,2]
[419202238,1775017876280,-387.268935,0.00026,2]
[419202239,1775017876289,-151.0,0.00026,2]
[419202240,1775017876298,-470.643226,0.00026,2]
[419202241,1775017876308,-151.0,0.00026,2]
[419202242,1775017876317,-151.0,0.00026,2]
[419202243,1775017876326,-387.268935,0.00026,2]
[419202244,1775017876335,-253.217047,0.00026,2]
[419202245,1775017876344,-470.643226,0.00026,2]
[419202246,1775017876353,-302.093611,0.00026,2]
[419202247,1775017876362,-387.268935,0.00026,2]
[419202248,1775017876371,-302.093611,0.00026,2]
[419202249,1775017876381,-253.217047,0.00026,2]
[419202250,1775017876390,-2106.955926,0.00026,2]
[419202251,1775017876399,-302.093611,0.00026,2]
[419202252,1775017876409,-253.217047,0.00026,2]
[419202253,1775017876419,-2106.955926,0.00026,2]
[419202254,1775017876427,-539.294502,0.00026,2]
[419202255,1775017876437,-302.093611,0.00026,2]
[419202256,1775017876446,-2106.955926,0.00026,2]
[419202257,1775017876456,-539.294502,0.00026,2]
[419202258,1775017876465,-151.0,0.00026,2]
[419202259,1775017876474,-2106.955926,0.00026,2]
[419202260,1775017876484,-541.25,0.00026008,2]
[419202261,1775017876494,-500.0,0.00026008,2]
[419202262,1775017876503,-500.0,0.00026008,2]
[419202263,1775017876512,-500.0,0.00026008,2]
[419202264,1775017876522,-500.0,0.00026008,2]
[419202265,1775017876532,-8882.6885148,0.0002603,2]
[419202266,1775017876541,-500.0,0.0002603,2]
[419202267,1775017876551,-151.0,0.0002603,2]
[419202268,1775017876560,-293.17725025,0.0002603,2]
[419202269,1775017876569,-151.0,0.00026085,2]
[419202270,1775017876579,-151.0,0.00026085,2]
[419202271,1775017876588,-151.0,0.00026085,2]
[419202272,1775017876598,-1313.53875,0.00026085,2]
[419202273,1775017876609,-485.224635,0.00026085,2]
[419202274,1775017876620,-151.0,0.00026085,2]
[419202275,1775017876630,-151.0,0.00026085,2]
[419202276,1775017876640,-1313.53875,0.00026085,2]
[419202277,1775017876650,-485.224635,0.00026085,2]
[419202278,1775017876661,-1541.735085,0.00026085,2]
[419202279,1775017876671,-151.0,0.00026085,2]
[419202280,1775017876682,-9211.34798985,0.00026085,2]
[419202281,1775017876694,-500.0,0.00026085,2]
[419202282,1775017876705,-151.0,0.00026085,2]
[419202283,1775017876715,-304.02480851,0.00026085,2]
[419202284,1775017876727,-9552.16786547,0.0002614,2]
[419202285,1775017876738,-500.0,0.0002614,2]
[419202286,1775017876748,-151.0,0.0002614,2]
[419202287,1775017876757,-315.27372642,0.0002614,2]
[419202288,1775017876768,-270.8,0.00026144,30]
[419202289,1775017876777,-9905.5980765,0.00026195,2]
[419202290,1775017876786,-500.0,0.00026195,2]
[419202291,1775017876796,-151.0,0.00026195,2]
[419202292,1775017876806,-326.9388543,0.00026195,2]
[419202293,1775017876817,-1115.0,0.00026208,2]
[419202294,1775017876829,-10272.10520533,0.0002625,2]
[419202295,1775017876839,-500.0,0.0002625,2]
[419202296,1775017876848,-151.0,0.0002625,2]
[419202297,1775017876858,-339.03559191,0.0002625,2]
[419202298,1775017876868,-10652.17309792,0.00026305,2]
[419202299,1775017876879,-500.0,0.00026305,2]
[419202300,1775017876888,-151.0,0.00026305,2]
[419202301,1775017876899,-153.94,0.00026337,7]
[419202302,1775017876908,-197.89,0.00026337,7]
[419202303,1775017876917,-11046.30350255,0.0002636,2]
[419202304,1775017876928,-500.0,0.0002636,2]
[419202305,1775017876940,-151.0,0.0002636,2]
[419202306,1775017876952,-200.0,0.00026413,2]
[419202307,1775017876962,-181.08010149,0.00026413,2]
[419202308,1775017876972,-1235.18214925,0.00026413,2]
[419202309,1775017876984,-181.08010149,0.00026413,2]
[419202310,1775017876994,-200.0,0.00026413,2]
[419202311,1775017877004,-181.08010149,0.00026413,2]